bitfinex/quotes_ETHUSD_20260226
["timestamp","ask_amount","ask_price","bid_price","bid_amount"]
[1772065590029,1.58624363,2074.4,2073.6,6.39198776]
[1772065590330,0.002,2074.7,2073.7,4.10217321]
[1772065590331,2.79327498,2074.7,2073.7,4.10217321]
[1772065590530,2.79327498,2074.7,2073.7,1.56952877]
[1772065591314,1.58624363,2074.6,2073.7,1.56952877]
[1772065591524,1.58624363,2074.6,2073.6,4.82245899]
[1772065591838,3.73967579,2074.7,2073.6,4.82245899]
[1772065591839,1.52573102,2074.4,2073.6,4.82245899]
[1772065592040,2.73093546,2074.4,2074.0,0.001]
[1772065593111,1.20711788,2074.5,2074.0,0.001]
[1772065593841,0.002,2074.5,2074.0,0.001]
[1772065594231,0.002,2074.7,2074.4,2.53264444]
[1772065594438,0.002,2074.7,2074.3,1.48094871]
[1772065595949,0.002,2074.7,2074.4,1.20516775]
[1772065597237,0.002,2074.9,2074.4,9.0087609]
[1772065597445,0.002,2074.9,2074.5,1.48094871]
[1772065597642,0.002,2075.1,2074.5,1.48094871]
[1772065597643,0.002,2075.1,2074.7,2.53264444]
[1772065597843,0.002,2075.3,2074.5,1.48094871]
[1772065598025,0.002,2075.3,2074.8,1.20493541]
[1772065598436,0.002,2075.3,2074.8,2.68588412]
[1772065598861,0.002,2075.3,2075.0,2.53264444]
[1772065599165,0.002,2075.3,2074.9,1.48094871]
[1772065599166,0.002,2075.3,2074.7,1.20494681]
[1772065599537,0.002,2075.3,2074.6,6.35900633]
[1772065599538,0.002,2075.3,2074.6,2.74401163]
[1772065600066,0.002,2075.3,2074.6,5.27665607]
[1772065600264,0.002,2075.3,2074.9,1.48094871]
[1772065600562,0.002,2075.3,2074.6,1.20501163]
[1772065601064,1.52573102,2075.2,2074.5,1.20506429]
[1772065602062,0.002,2075.3,2074.8,1.80903466]
[1772065602363,0.002,2075.3,2074.8,1.20490157]
[1772065602665,1.52773102,2075.3,2074.8,1.20490157]
[1772065602866,1.52773102,2075.3,2074.7,1.20494832]
[1772065603848,1.52773102,2075.3,2074.6,1.20500795]
[1772065604048,1.20476121,2075.1,2074.3,1.20522585]
[1772065604767,2.73049223,2075.1,2074.3,1.20522585]
[1772065605540,2.73049223,2075.1,2074.5,0.001]
[1772065605773,0.002,2075.0,2074.5,0.001]
[1772065608576,0.002,2075.2,2074.7,1.48094871]
[1772065610873,0.002,2075.2,2074.8,1.20493541]
[1772065612762,0.002,2075.2,2074.8,2.68588412]
[1772065613780,0.002,2075.5,2075.0,1.80903466]
[1772065614080,0.002,2075.5,2074.9,3.02394871]
[1772065615954,0.002,2075.5,2075.0,1.20481927]
[1772065618259,1.47664715,2075.5,2075.0,1.20481927]
[1772065618451,1.47664715,2075.5,2074.9,2.74783483]
[1772065618657,1.47464715,2075.3,2074.9,0.001]
[1772065618869,1.47664715,2075.3,2074.9,0.001]
[1772065620182,2.68131375,2075.3,2074.9,0.001]
[1772065620386,2.68131375,2075.3,2074.6,2.75399349]
[1772065620387,1.47464715,2075.1,2074.6,4.99604219]
[1772065620574,1.47464715,2075.1,2074.6,1.20604219]
[1772065621465,1.47464715,2075.1,2074.6,0.001]
[1772065621668,1.80903466,2075.2,2074.6,0.001]
[1772065621669,1.47464715,2074.9,2074.6,0.001]
[1772065622281,2.67958256,2074.8,2074.6,0.001]
[1772065622481,1.47464715,2074.7,2074.3,0.001]
[1772065622808,1.546,2074.8,2074.3,0.001]
[1772065623095,1.47464715,2074.9,2074.3,0.001]
[1772065623298,1.20482095,2075.0,2073.7,0.001]
[1772065623299,1.47464715,2074.5,2073.7,0.001]
[1772065623482,8.01863102,2074.8,2073.7,0.001]
[1772065623483,1.47464715,2074.2,2073.7,0.001]
[1772065623894,1.47464715,2074.6,2073.7,1.20654939]
[1772065624086,1.47464715,2074.4,2073.7,1.20654939]
[1772065624291,1.47464715,2074.4,2073.4,9.6078685]
[1772065624292,1.47464715,2074.2,2073.4,0.001]
[1772065624494,1.47464715,2073.7,2073.0,1.20595394]
[1772065624707,1.47464715,2073.7,2073.0,1.20597419]
[1772065625010,1.47464715,2073.7,2072.9,1.20699334]
[1772065625701,3.28368181,2073.7,2072.9,1.20699334]
[1772065626401,1.20574901,2073.4,2072.9,0.001]
[1772065626696,3.28368181,2073.3,2072.9,0.001]
[1772065627897,1.47464715,2073.3,2072.9,0.001]
[1772065628110,1.20551644,2073.8,2072.9,0.001]
[1772065628512,1.47464715,2073.8,2072.9,1.20703984]
[1772065628899,1.47464715,2073.7,2072.9,1.20703984]
[1772065629305,3.28368181,2073.6,2072.9,1.20703984]
[1772065629508,1.47464715,2073.6,2072.9,1.20703984]
[1772065630315,3.28368181,2073.8,2072.9,2.63290419]
[1772065630520,1.20545831,2073.9,2073.0,1.42586435]
[1772065630826,2.68010546,2073.9,2073.0,1.42586435]
[1772065631420,2.68010546,2073.9,2073.1,0.001]
[1772065631712,0.002,2073.6,2073.1,0.001]
[1772065632624,0.002,2073.6,2073.1,1.20692349]
[1772065632834,0.002,2073.6,2073.1,0.001]
[1772065633215,1.80903466,2073.5,2073.1,0.001]
[1772065633525,1.47664715,2073.6,2073.1,0.001]
[1772065634834,1.20569086,2073.5,2073.1,0.001]
[1772065636730,3.01472552,2073.5,2073.1,0.001]
[1772065636943,1.20765959,2073.6,2073.1,0.001]
[1772065638735,0.002,2073.8,2073.2,1.80903466]
[1772065639044,0.002,2073.8,2073.2,3.23489901]
[1772065639416,0.002,2073.8,2073.3,1.42586435]
[1772065640745,0.002,2073.8,2073.4,1.20574901]
[1772065641441,0.002,2073.8,2073.3,2.63164241]
[1772065642141,0.002,2073.8,2073.1,0.001]
[1772065642434,3.28368181,2073.7,2073.1,0.001]
[1772065642841,2.68027986,2073.6,2073.1,0.001]
[1772065643020,1.20754032,2073.8,2073.1,0.001]
[1772065643256,2.68216889,2073.8,2073.1,0.001]
[1772065643436,1.47464715,2073.7,2073.1,0.001]
[1772065644566,1.47464715,2073.7,2073.3,0.001]
[1772065644868,0.002,2073.6,2073.3,0.001]
[1772065645854,0.002,2073.6,2073.3,3.791]
[1772065646441,0.002,2073.8,2073.3,5.26983578]
[1772065647469,0.002,2073.8,2073.4,4.99574901]
[1772065648460,0.002,2073.8,2073.4,3.79]
[1772065648761,1.38548357,2073.8,2073.4,3.79]
[1772065649674,2.59101715,2073.8,2073.4,3.79]
[1772065650663,1.38548357,2073.8,2073.4,3.79]
[1772065650851,2.59100885,2073.8,2073.4,3.79]
[1772065651881,1.46566092,2073.5,2073.1,0.001]
[1772065652048,1.80903466,2073.6,2072.9,0.001]
[1772065652049,3.27469558,2073.2,2072.9,0.001]
[1772065652246,1.46566092,2073.2,2072.9,0.001]
[1772065653362,3.27469558,2073.2,2072.9,0.001]
[1772065653688,1.547,2073.4,2072.9,0.001]
[1772065653849,1.547,2073.4,2072.9,1.2070391]
[1772065653850,2.86839695,2073.3,2072.9,1.2070391]
[1772065654361,1.46566092,2072.9,2072.3,0.001]
[1772065654686,2.87001823,2072.8,2072.3,1.20738809]
[1772065654847,2.87001823,2072.8,2072.3,0.001]
[1772065656381,1.20615622,2072.7,2072.3,0.001]
[1772065656685,1.46566092,2072.6,2072.3,0.001]
[1772065657888,3.27469558,2072.5,2072.3,0.001]
[1772065658084,1.46566092,2072.4,2072.0,0.001]
[1772065658294,1.20638903,2072.3,2072.0,0.001]
[1772065659479,2.67386328,2072.7,2072.0,0.001]
[1772065659788,1.46566092,2072.5,2072.0,0.001]
[1772065660594,1.20631695,2072.5,2072.0,0.001]
[1772065660892,1.20624183,2072.6,2072.0,0.001]
[1772065661469,0.002,2072.7,2072.0,0.001]
[1772065661798,0.002,2072.7,2072.1,1.50285731]
[1772065662489,0.002,2072.7,2072.2,1.20644725]
[1772065665695,0.002,2072.7,2072.3,1.549]
[1772065665896,0.002,2072.7,2072.4,1.549]
[1772065666410,0.002,2072.7,2072.0,7.36554659]
[1772065666411,1.46766092,2072.7,2072.0,0.001]
[1772065666706,1.46566092,2072.6,2072.1,1.55]
[1772065666867,1.20627261,2072.5,2072.0,0.001]
[1772065667275,2.67191974,2072.6,2072.1,1.549]
[1772065667494,2.67191974,2072.6,2072.0,0.001]
[1772065667781,2.67191974,2072.6,2072.1,3.79]
[1772065668184,2.67191974,2072.6,2072.0,0.001]
[1772065668392,2.67191974,2072.6,2072.1,1.549]
[1772065668590,2.67191974,2072.6,2072.0,0.001]
[1772065668777,2.67191974,2072.6,2072.1,1.549]
[1772065668991,2.67191974,2072.6,2072.0,0.001]
[1772065669195,2.67191974,2072.6,2072.5,0.001]
[1772065669408,2.67191974,2072.6,2072.1,1.549]
[1772065669611,2.67191974,2072.6,2072.3,0.001]
[1772065670385,2.67191974,2072.6,2072.3,1.549]
[1772065670882,2.67191974,2072.6,2072.3,0.001]
[1772065671124,2.67191974,2072.6,2072.2,1.548]
[1772065671416,2.67191974,2072.6,2072.0,0.001]
[1772065671594,1.46566092,2072.5,2072.1,1.548]
[1772065672114,1.46566092,2072.5,2071.8,1.50385731]
[1772065672115,4.32373782,2072.4,2071.8,0.001]
[1772065672328,1.20625882,2072.6,2071.9,1.548]
[1772065672627,1.20625882,2072.6,2072.0,1.50285731]
[1772065672978,0.002,2072.7,2072.0,1.50285731]
[1772065673185,0.002,2072.7,2072.0,2.70939991]
[1772065673825,0.002,2072.7,2072.1,1.50285731]
[1772065674597,0.002,2072.7,2072.2,1.547]
[1772065674798,0.002,2072.7,2072.2,3.04985731]
[1772065675124,0.002,2072.7,2072.2,4.25625042]
[1772065675827,0.002,2072.7,2072.2,2.70925042]
[1772065675997,0.002,2072.7,2072.3,1.548]
[1772065676322,0.002,2072.7,2072.3,1.48958282]
[1772065676627,0.002,2072.7,2072.4,1.548]
[1772065677390,0.002,2072.7,2072.2,1.48958282]
[1772065678047,0.002,2072.7,2072.3,1.549]
[1772065678199,0.002,2072.7,2072.2,1.48958282]
[1772065678394,0.002,2072.7,2071.9,2.69620157]
[1772065678395,1.42496491,2072.7,2071.9,2.69620157]
[1772065678599,1.42496491,2072.7,2072.3,1.548]
[1772065678904,0.002,2072.7,2072.4,1.548]
[1772065679827,0.002,2072.7,2072.5,1.548]
[1772065680140,0.002,2072.7,2072.1,1.48958282]
[1772065680442,0.002,2072.7,2072.2,1.548]
[1772065680721,0.002,2072.7,2072.3,1.48958282]
[1772065681114,0.002,2072.9,2072.5,1.49058282]
[1772065681806,0.002,2072.9,2072.6,1.48958282]
[1772065682130,2.53875758,2072.7,2072.3,1.548]
[1772065682292,5.07751516,2072.8,2072.3,1.548]
[1772065682293,3.96172249,2072.8,2072.3,1.548]
[1772065682499,0.002,2072.9,2072.4,1.48958282]
[1772065682898,2.87235358,2072.9,2072.4,1.48958282]
[1772065683816,1.20609803,2072.8,2072.4,1.48958282]
[1772065685201,1.20609803,2072.8,2072.3,1.548]
[1772065685529,3.74485561,2072.8,2072.3,1.548]
[1772065685697,5.16782052,2072.8,2072.3,1.548]
[1772065685902,5.16782052,2072.8,2072.1,1.48958282]
[1772065686106,5.16782052,2072.8,2072.1,1.547]
[1772065686107,3.96172249,2072.6,2072.1,1.547]
[1772065688100,2.53875758,2072.4,2072.0,0.001]
[1772065688335,3.96172249,2072.4,2072.0,0.001]
[1772065688533,1.20627261,2072.5,2072.0,1.49058282]
[1772065688736,1.20614186,2072.8,2072.0,1.49058282]
[1772065689058,2.87251512,2072.7,2072.0,1.49058282]
[1772065690639,2.87251512,2072.7,2072.1,1.48958282]
[1772065690640,1.20621441,2072.6,2072.1,1.48958282]
[1772065691965,2.873445,2072.5,2072.1,1.48958282]
[1772065692161,1.20621441,2072.6,2072.1,1.48958282]
[1772065692965,4.82485766,2072.7,2072.1,1.48958282]
[1772065693168,2.87337506,2072.6,2072.1,1.48958282]
[1772065693539,4.29633997,2072.6,2072.0,0.001]
[1772065693767,4.29665044,2072.5,2072.0,0.001]
[1772065693963,1.42296491,2072.5,2072.0,0.001]
[1772065694952,1.2062432,2072.6,2072.0,1.49058282]
[1772065695144,2.62916492,2072.7,2072.0,1.49058282]
[1772065695463,2.87349988,2072.6,2072.0,1.49058282]
[1772065696056,2.87349988,2072.6,2072.3,0.001]
[1772065696262,2.87549988,2072.6,2072.3,0.001]
[1772065696479,2.87549988,2072.6,2072.3,3.03558282]
[1772065697475,0.002,2072.6,2072.3,3.03558282]
[1772065698171,1.20821996,2072.6,2072.3,3.03558282]
[1772065698367,1.20822351,2072.6,2072.3,0.001]
[1772065698575,1.20822351,2072.6,2072.3,1.547]
[1772065699078,3.96172249,2072.4,2072.0,0.001]
[1772065699618,1.20638903,2072.3,2072.0,0.001]
[1772065700367,2.62934008,2072.4,2072.0,0.001]
[1772065700574,1.20637517,2072.4,2072.0,0.001]
[1772065701698,4.82519378,2072.5,2072.0,1.49058282]
[1772065701996,2.87370688,2072.4,2072.0,1.49058282]
[1772065702399,1.20627261,2072.5,2072.0,1.49058282]
[1772065702697,2.62923752,2072.5,2072.0,1.49058282]
[1772065703410,1.42296491,2072.5,2072.0,1.49058282]
[1772065703621,0.002,2072.6,2072.0,2.69709136]
[1772065703917,4.2995239,2072.6,2072.0,2.69709136]
[1772065704098,0.002,2072.6,2072.1,1.48958282]
[1772065704503,2.87655267,2072.6,2072.1,1.48958282]
[1772065705822,2.87655267,2072.6,2072.1,2.69604931]
[1772065706322,5.4603104,2072.6,2072.1,2.69604931]
[1772065706492,2.58575773,2072.6,2072.1,2.69604931]
[1772065707920,1.37754186,2072.5,2072.0,1.42243237]
[1772065708300,0.002,2072.6,2072.0,1.42243237]
[1772065708501,1.20821703,2072.6,2072.2,1.42243237]
[1772065708709,0.002,2072.4,2072.2,1.42243237]
[1772065709392,0.002,2072.4,2072.3,1.55]
[1772065710493,1.20822029,2072.6,2072.3,2.97143237]
[1772065710692,0.002,2072.6,2072.3,4.17780415]
[1772065711003,0.002,2072.6,2072.3,2.97143237]
[1772065711331,4.08226118,2072.6,2072.3,2.97143237]
[1772065711504,0.002,2072.6,2072.3,1.55]
[1772065711890,2.87640754,2072.6,2072.3,1.55]
[1772065712828,0.002,2072.6,2072.3,2.75638668]
[1772065713713,0.002,2072.6,2072.3,4.17769984]
[1772065713922,2.87455938,2072.7,2072.3,2.75638668]
[1772065713923,2.78035832,2072.7,2072.3,2.75638668]
[1772065714091,0.002,2072.8,2072.4,1.42131316]
[1772065715621,0.002,2072.9,2072.6,1.42131316]
[1772065715793,0.002,2072.9,2072.8,1.42131316]
[1772065715991,0.002,2072.9,2072.8,2.62741119]
[1772065718234,0.002,2072.9,2072.8,1.42131316]
[1772065718423,0.002,2072.9,2072.8,2.97931316]
[1772065718630,0.002,2072.9,2072.8,4.18541119]
[1772065720019,0.002,2072.9,2072.7,1.561]
[1772065720227,0.002,2072.9,2072.8,2.62741119]
[1772065720735,0.002,2073.0,2072.8,2.62741119]
[1772065721427,0.002,2073.0,2072.9,1.42131316]
[1772065722199,1e-08,2073.2,2073.1,1.42131316]
[1772065722406,1e-08,2073.2,2073.1,2.98631316]
[1772065722906,1e-08,2073.2,2072.7,2.62746087]
[1772065723131,1.38589097,2073.2,2072.8,1.566]
[1772065723339,1e-08,2073.2,2072.8,7.68531316]
[1772065724439,2.54169411,2073.4,2072.8,8.89139075]
[1772065725206,6.20853257,2073.6,2072.9,1.42131316]
[1772065725712,6.20853257,2073.6,2072.8,7.47007759]
[1772065725713,2.59152367,2073.6,2073.0,6.11931316]
[1772065726322,2.59152367,2073.6,2073.1,2.99031316]
[1772065726631,2.59146553,2073.7,2073.1,4.19622086]
[1772065728640,2.59146553,2073.7,2073.1,2.99031316]
[1772065728839,1.38589096,2073.7,2073.2,1.42131316]
[1772065729033,2.77955875,2073.8,2073.2,6.11931316]
[1772065729511,4.16544971,2073.8,2073.2,6.11931316]
[1772065730418,1.38589096,2073.7,2073.2,4.698]
[1772065730957,1.38589096,2073.5,2073.2,6.271]
[1772065731147,1.38589096,2073.5,2072.9,1.573]
[1772065731315,3.19811255,2073.4,2072.9,1.573]
[1772065731637,1.38589096,2073.4,2072.9,1.573]
[1772065732440,1.38589096,2073.4,2072.8,2.99431316]
[1772065732811,1.38589096,2073.2,2072.8,1.573]
[1772065733236,1.38589096,2073.2,2072.8,2.77909732]
[1772065733411,1.38589096,2073.2,2072.8,1.573]
[1772065733615,1.38589096,2073.2,2072.8,2.77909171]
[1772065734141,1.38589096,2073.2,2072.8,2.77909725]
[1772065734349,1.38589096,2073.2,2072.8,1.573]
[1772065735642,2.59176207,2073.2,2072.8,1.573]
[1772065735842,1.38589096,2073.2,2072.8,1.573]
[1772065736931,2.5917572,2073.2,2072.8,1.573]
[1772065737348,1.38589096,2073.2,2072.8,1.573]
[1772065738861,2.59177788,2073.2,2072.7,1.20610584]
[1772065739025,1.43785571,2073.0,2072.6,0.001]
[1772065740975,4.22163985,2073.4,2072.8,1.41193422]
[1772065741260,2.64363985,2073.4,2072.8,1.41193422]
[1772065742432,0.002,2073.6,2073.0,1.41193422]
[1772065742880,2.73423381,2073.6,2073.0,1.41193422]
[1772065743057,2.73423381,2073.6,2073.1,1.20592349]
[1772065743370,5.37772543,2073.6,2073.1,1.41193422]
[1772065743532,1.43785571,2073.2,2072.6,1.41293422]
[1772065743880,1.43785571,2073.1,2072.6,0.001]
[1772065744531,1.20763591,2073.6,2072.7,3.22415581]
[1772065744761,2.73504595,2073.5,2073.0,1.41193422]
[1772065745146,4.45594262,2073.2,2072.6,0.001]
[1772065745456,2.64372103,2073.2,2072.6,0.001]
[1772065745843,3.01990018,2073.6,2073.0,0.001]
[1772065746038,2.73545464,2073.5,2073.0,0.001]
[1772065748235,2.73545464,2073.5,2073.0,1.41293422]
[1772065748960,1.43785571,2073.4,2073.0,0.001]
[1772065749545,2.73536311,2073.3,2073.0,0.001]
[1772065749863,2.64549138,2073.6,2073.0,1.41293422]
[1772065750063,2.73505859,2073.5,2073.0,1.41293422]
[1772065750267,2.73505859,2073.5,2073.1,1.20592349]
[1772065750766,2.73505859,2073.5,2073.0,2.61887458]
[1772065751102,3.94075931,2073.5,2073.0,1.41293422]
[1772065751356,2.73505859,2073.4,2073.0,1.41293422]
[1772065752465,3.94082266,2073.4,2073.0,1.41293422]
[1772065752767,1.20576407,2073.4,2073.0,1.41293422]
[1772065753673,1.43785571,2073.5,2073.0,2.61890889]
[1772065753839,2.64355318,2073.5,2073.0,1.41293422]
[1772065754160,2.73567067,2073.4,2073.0,2.61889778]
[1772065755840,2.73567067,2073.4,2073.0,1.41293422]
[1772065756170,2.73567067,2073.4,2072.8,4.82527619]
[1772065756171,1.43785571,2073.3,2072.8,0.001]
[1772065756544,1.43785571,2073.3,2072.8,1.41293422]
[1772065756748,1.20576887,2073.4,2072.9,1.41193422]
[1772065758172,1.43785571,2073.4,2072.8,0.001]
[1772065758473,5.98620991,2073.3,2073.0,0.001]
[1772065758640,3.2500773,2073.3,2073.0,0.001]
[1772065758837,3.2520773,2073.3,2073.0,0.001]
[1772065759770,1.43785571,2073.0,2072.8,0.001]
[1772065760355,1.20603984,2072.9,2072.8,0.001]
[1772065760673,1.20603984,2072.9,2072.6,0.001]
[1772065764777,2.64389555,2072.9,2072.6,0.001]
[1772065766371,1.20615622,2072.7,2072.6,0.001]
[1772065766844,2.79702682,2073.0,2072.6,1.38261738]
[1772065767044,2.79698711,2073.0,2072.6,1.38261738]
[1772065768955,1.591,2073.0,2072.6,1.38261738]
[1772065769175,2.79698222,2073.0,2072.6,1.38261738]
[1772065769381,1.34484793,2072.9,2072.6,0.001]
[1772065769687,2.79698222,2073.0,2072.6,0.001]
[1772065770059,4.14183015,2073.0,2072.6,0.001]
[1772065770678,4.14184035,2073.0,2072.6,0.001]
[1772065770893,2.55084035,2073.0,2072.6,0.001]
[1772065771096,2.55084035,2073.0,2072.8,0.001]
[1772065771683,2.55284035,2073.0,2072.8,0.001]
[1772065773364,2.55284035,2073.0,2072.6,0.001]
[1772065773365,1.38497468,2072.9,2072.6,0.001]
[1772065775501,1.20609803,2072.8,2072.6,0.001]
[1772065776487,2.59107271,2072.8,2072.6,0.001]
[1772065777095,2.81204755,2072.9,2072.6,1.33003942]
[1772065777307,1.606,2072.9,2072.6,1.33003942]
[1772065777873,2.81204609,2072.9,2072.6,0.001]
[1772065778079,1.606,2072.9,2072.6,1.33003942]
[1772065778281,2.81204438,2072.9,2072.6,1.33003942]
[1772065779505,2.81204438,2072.9,2072.6,0.001]
[1772065779670,1.38497468,2072.8,2072.6,0.001]
[1772065780498,2.81204438,2072.9,2072.6,0.001]
[1772065781202,2.59299428,2073.0,2072.6,0.001]
[1772065781400,2.59299428,2073.0,2072.6,1.33003942]
[1772065781708,1.38497468,2072.7,2072.5,0.001]
[1772065782423,1.20609803,2072.8,2072.5,0.001]
[1772065783284,2.59107271,2072.8,2072.5,0.001]
[1772065783720,2.59107271,2072.8,2072.7,0.001]
[1772065783920,5.32801054,2072.8,2072.7,0.001]
[1772065784418,5.32801054,2072.8,2072.5,0.001]
[1772065784624,2.59107271,2072.8,2072.5,0.001]
[1772065785486,1.38497468,2072.6,2072.3,0.001]
[1772065785941,1.38497468,2072.4,2072.3,0.001]
[1772065786229,1.38497468,2072.4,2072.1,0.001]
[1772065787183,1.38497468,2072.2,2071.7,0.001]
[1772065787382,1.621,2072.2,2071.7,0.001]
[1772065787625,1.38497468,2072.1,2071.7,0.001]
[1772065788112,1.20650547,2072.1,2071.8,1.33003942]
[1772065789298,1.20650547,2072.1,2071.8,0.001]
[1772065789479,1.38497468,2072.0,2071.3,0.001]
[1772065789893,1.38497468,2072.0,2071.4,0.001]
[1772065789894,1.20662194,2071.9,2071.4,0.001]
[1772065791018,2.59159662,2071.9,2071.4,0.001]
[1772065791186,4.21459662,2071.9,2071.4,0.001]
[1772065791684,1.20660977,2072.0,2071.4,0.001]
[1772065792102,1.38497468,2071.8,2071.4,0.001]
[1772065793918,1.38497468,2071.8,2071.3,1.33003942]
[1772065794216,1.20673842,2071.7,2071.4,0.001]
[1772065796010,2.55830542,2071.7,2071.6,0.001]
[1772065796321,2.55830542,2071.7,2071.4,0.001]
[1772065796507,2.55830542,2071.7,2070.8,1.31137356]
[1772065796508,1.351567,2071.4,2070.8,1.31137356]
[1772065796704,1.351567,2071.4,2070.2,2.70203803]
[1772065796705,1.351567,2071.2,2070.6,1.31137356]
[1772065796903,1.351567,2071.2,2070.4,1.31137356]
[1772065797105,1.351567,2071.2,2070.3,1.20752396]
[1772065797106,1.627,2071.3,2070.6,1.31137356]
[1772065797438,1.351567,2071.0,2070.3,1.31137356]
[1772065797792,2.978567,2071.0,2070.3,1.31137356]
[1772065798310,4.18577097,2071.0,2070.4,2.51886969]
[1772065798693,4.18577097,2071.0,2070.4,1.31137356]
[1772065799317,1.351567,2070.9,2070.2,1.31137356]
[1772065799517,1.351567,2070.9,2070.2,2.51896117]
[1772065799923,1.351567,2070.9,2070.3,1.31137356]
[1772065800134,1.351567,2070.9,2069.9,1.0844375]
[1772065800425,1.351567,2070.9,2069.3,1.2421576]
[1772065800426,1.36729093,2070.2,2069.3,1.2421576]
[1772065800613,1.36729093,2070.2,2069.3,0.0340554]
[1772065800614,1.36729093,2070.1,2069.3,0.0340554]
[1772065800815,1.36729093,2070.0,2069.3,0.06767503]
[1772065801324,1.36729093,2070.2,2069.4,0.03361963]
[1772065801526,1.36729093,2070.4,2069.5,0.03361963]
[1772065801724,4.20067043,2070.6,2069.5,0.03361963]
[1772065801934,4.20067043,2070.6,2069.7,0.03092314]
[1772065802106,1.37979093,2070.5,2069.7,0.00592314]
[1772065802309,1.37979093,2070.5,2069.8,0.00592314]
[1772065802829,2.58724091,2070.5,2069.8,0.00592314]
[1772065803199,1.37979093,2070.5,2069.8,0.00592314]
[1772065803846,9.90516956,2071.2,2070.0,2.53841967]
[1772065803847,1.37979093,2070.9,2070.0,2.53841967]
[1772065804016,1.37979093,2070.9,2070.1,0.00096406]
[1772065804193,1.37979093,2070.9,2069.7,1.20790452]
[1772065804394,1.37979093,2070.5,2069.7,1.20790452]
[1772065804731,1.37979093,2070.5,2069.8,0.00096406]
[1772065804941,1.37979093,2070.7,2069.8,0.00096406]
[1772065806146,1.37979093,2070.9,2069.8,0.00096406]
[1772065806359,1.37979093,2071.0,2070.0,2.53841967]
[1772065806529,1.37979093,2071.0,2070.1,1.20767112]
[1772065807848,1.37979093,2071.2,2070.2,2.53841967]
[1772065808052,2.58682071,2071.2,2070.2,2.53841967]
[1772065808426,1.37979093,2071.1,2070.3,1.20755446]
[1772065808612,1.37979093,2071.1,2069.6,5.07683934]
[1772065808613,1.37979093,2070.7,2069.7,1.20786207]
[1772065808815,2.53841967,2070.8,2069.5,4.83202178]
[1772065808816,1.37979093,2070.5,2069.5,4.83202178]
[1772065809051,1.37979093,2070.5,2069.9,0.001]
[1772065809233,1.38179093,2070.5,2069.9,0.001]
[1772065810743,0.002,2070.5,2069.9,0.001]
[1772065811322,0.08192,2071.6,2070.4,4.09748347]
[1772065811525,0.002,2072.3,2070.4,4.09748347]
[1772065811526,0.002,2073.8,2073.7,0.04411865]
[1772065811720,0.002,2073.8,2072.2,2.54933677]
[1772065811721,0.00528401,2073.4,2072.9,2.20275701]
[1772065811935,0.002,2073.8,2072.9,0.08192]
[1772065811936,0.002,2073.7,2072.9,0.08192]
[1772065812129,0.002,2073.7,2072.8,2.53841967]
[1772065812130,0.002,2073.7,2073.4,0.00528401]
[1772065812341,0.002,2073.6,2073.0,1.91374018]
[1772065812540,1.38179093,2073.6,2072.7,0.35999174]
[1772065812751,1.37979093,2073.4,2072.4,0.89]
[1772065813057,1.37979093,2073.4,2072.2,2.06933677]
[1772065813058,1.71490318,2073.1,2072.2,2.06933677]
[1772065813230,1.71490318,2073.1,2072.2,3.25618802]
[1772065813743,1.71490318,2073.1,2072.2,2.04974999]
[1772065813928,0.002,2073.0,2072.2,2.04974999]
[1772065814126,1.63158432,2073.0,2072.1,2.76450334]
[1772065814553,1.63158432,2073.0,2072.1,1.558]
[1772065814764,1.62958432,2072.8,2072.0,1.20652237]
[1772065815331,0.002,2072.7,2072.0,1.20652237]
[1772065815730,1.62958432,2072.8,2072.0,1.20652237]
[1772065815731,0.002,2072.6,2072.0,1.20652237]
[1772065815931,0.002,2072.6,2072.0,3.74494204]
[1772065816662,1.62958432,2073.1,2072.3,1.20638903]
[1772065816833,0.002,2073.0,2072.3,1.20638903]
[1772065817358,0.09511225,2072.5,2072.3,1.20638903]
[1772065817872,1.62958432,2073.5,2072.3,1.20638903]
[1772065818028,1.62958432,2073.4,2072.4,1.559]
[1772065818878,1.62958432,2073.4,2072.5,1.20627261]
[1772065819239,1.62958432,2073.4,2072.5,2.76527261]
[1772065819669,0.002,2073.3,2072.8,2.53841967]
[1772065819853,0.002,2073.8,2072.8,2.53841967]
[1772065820044,0.002,2073.7,2072.8,2.53841967]
[1772065820359,0.002,2073.7,2072.8,2.50751863]
[1772065820575,0.002,2073.6,2073.0,2.53841967]
[1772065820737,0.002,2073.6,2073.0,4.09641967]
[1772065820934,0.002,2073.6,2073.1,1.20592349]
[1772065821668,1.62958432,2073.5,2072.6,2.53841967]
[1772065821883,0.002,2073.4,2073.0,2.53841967]
[1772065822042,0.002,2073.7,2073.0,2.53841967]
[1772065823066,0.002,2073.7,2073.1,1.20592349]
[1772065823473,0.002,2073.6,2073.1,1.20592349]
[1772065823670,0.004,2073.6,2073.4,2.53841967]
[1772065823868,0.002,2073.6,2073.4,2.53841967]
[1772065824249,0.002,2073.8,2073.2,5.07683934]
[1772065824250,0.002,2073.8,2073.6,2.53841967]
[1772065825141,0.002,2073.8,2073.7,1.20557457]
[1772065825346,0.002,2074.1,2073.7,1.20557457]
[1772065825658,0.002,2074.1,2073.3,4.82303185]
[1772065825659,1.62958432,2074.0,2073.3,1.559]
[1772065825860,1.64496995,2074.0,2073.3,1.559]
[1772065826250,1.64496995,2074.0,2072.8,2.53841967]
[1772065826474,1.62958432,2073.8,2072.8,1.559]
[1772065826655,1.62958432,2073.6,2072.8,1.559]
[1772065826843,0.01338563,2073.5,2072.8,1.559]
[1772065827041,0.01338563,2073.5,2072.9,2.53841967]
[1772065827272,0.002,2073.4,2073.1,2.53841967]
[1772065827647,0.002,2073.4,2073.2,1.20586532]
[1772065827856,0.01338563,2073.5,2073.3,2.53841967]
[1772065828058,1.62958432,2073.9,2073.3,2.53841967]
[1772065828267,1.62958432,2073.9,2073.0,4.82346131]
[1772065828268,1.62958432,2073.8,2073.0,2.53841967]